bitfinex/quotes_BTCUSD_20251004
["timestamp","ask_amount","ask_price","bid_price","bid_amount"]
[1759547958193,0.19380376,121920.0,121910.0,0.26319743]
[1759547958428,0.19380376,121920.0,121910.0,0.45855743]
[1759547958624,0.19380376,121920.0,121910.0,0.68939743]
[1759547964289,0.19380376,121920.0,121910.0,0.73332559]
[1759547966241,0.18865376,121920.0,121910.0,0.70396816]
[1759547966672,0.18865376,121920.0,121910.0,0.86802361]
[1759547966900,0.16763322,121930.0,121910.0,0.84617141]
[1759547967104,0.16763322,121930.0,121920.0,0.04401596]
[1759547967525,0.16969322,121930.0,121920.0,0.04401596]
[1759547967767,0.17278322,121930.0,121920.0,0.04401596]
[1759547969074,0.17378322,121930.0,121920.0,0.04401596]
[1759547970091,0.17578322,121930.0,121920.0,0.04401596]
[1759547974991,0.01175468,121930.0,121920.0,0.04401596]
[1759547977494,0.00866468,121930.0,121920.0,0.20805795]
[1759547978136,0.01161468,121930.0,121920.0,0.20805795]
[1759547980589,0.01161468,121930.0,121920.0,0.04401596]
[1759547980799,0.01161468,121930.0,121920.0,0.70125596]
[1759547985935,0.01161468,121930.0,121920.0,0.04401596]
[1759547986364,0.01161468,121930.0,121920.0,0.70125596]
[1759547986569,0.01161468,121930.0,121920.0,0.86529795]
[1759547986952,0.01161468,121930.0,121920.0,0.70125596]
[1759547990626,0.01161468,121930.0,121920.0,0.70121596]
[1759547995138,0.01161468,121930.0,121920.0,0.6572]
[1759548002758,0.01161468,121930.0,121920.0,0.65716]
[1759548003107,0.01161468,121930.0,121910.0,0.22271364]
[1759548003293,0.01161468,121930.0,121920.0,2.659387]
[1759548003498,0.01161468,121930.0,121920.0,3.316547]
[1759548003695,0.01161468,121930.0,121920.0,0.65716]
[1759548003903,0.00961468,121930.0,121920.0,0.65716]
[1759548004907,0.01161468,121930.0,121920.0,0.65716]
[1759548006214,0.01161468,121930.0,121920.0,0.57192]
[1759548006423,0.01161468,121930.0,121920.0,0.65716]
[1759548007993,0.01161468,121930.0,121910.0,0.22271364]
[1759548008219,0.01168468,121930.0,121920.0,3.231307]
[1759548008430,0.01168468,121930.0,121920.0,0.65716]
[1759548008633,0.01168468,121930.0,121910.0,0.22271364]
[1759548008833,0.01168468,121930.0,121920.0,3.316547]
[1759548009053,0.01168468,121930.0,121920.0,0.65716]
[1759548009798,0.00968468,121930.0,121920.0,0.65716]
[1759548010568,0.03018824,121930.0,121920.0,0.65716]
[1759548011108,0.03218824,121930.0,121920.0,0.65716]
[1759548013124,0.03218824,121930.0,121920.0,0.12935139]
[1759548013584,0.01168468,121930.0,121920.0,0.12935139]
[1759548014033,0.19621678,121930.0,121920.0,0.04411139]
[1759548014256,0.17571322,121930.0,121920.0,0.36027139]
[1759548019984,0.01168468,121930.0,121920.0,0.36027139]
[1759548020198,0.03218824,121930.0,121920.0,0.36027139]
[1759548021285,0.19621678,121930.0,121920.0,0.36027139]
[1759548021491,0.17571322,121930.0,121920.0,0.36027139]
[1759548023026,0.17571322,121930.0,121920.0,0.31616]
[1759548023789,0.17571322,121930.0,121920.0,0.3602689]
[1759548024227,0.17571322,121930.0,121920.0,0.0441089]
[1759548024566,0.17571322,121930.0,121920.0,0.3602689]
[1759548027837,0.20032354,121930.0,121920.0,0.3602689]
[1759548029095,0.036295,121930.0,121920.0,0.52431089]
[1759548029305,0.05171856,121930.0,121920.0,0.48020199]
[1759548029728,0.05377856,121930.0,121920.0,0.31616]
[1759548029935,0.05696856,121930.0,121920.0,0.31616]
[1759548031616,0.05696856,121930.0,121910.0,0.56287063]
[1759548031841,0.21780851,121930.0,121920.0,2.975507]
[1759548032024,0.19730495,121930.0,121920.0,0.31612]
[1759548032480,0.034465,121930.0,121920.0,0.31612]
[1759548032665,0.05496856,121930.0,121920.0,0.31612]
[1759548032912,0.05177856,121930.0,121920.0,0.31612]
[1759548033143,0.05496856,121930.0,121920.0,0.31612]
[1759548033558,0.05696856,121930.0,121920.0,0.31612]
[1759548034429,0.05696856,121930.0,121920.0,0.48016199]
[1759548036003,0.05696856,121930.0,121910.0,0.56286636]
[1759548036212,0.05696856,121930.0,121920.0,3.316467]
[1759548036436,0.05696856,121930.0,121920.0,0.65708]
[1759548037043,0.05696856,121930.0,121920.0,0.82112199]
[1759548037771,0.05496856,121930.0,121920.0,0.82112199]
[1759548038910,0.05696856,121930.0,121920.0,0.82112199]
[1759548039532,0.05171856,121930.0,121920.0,0.82112199]
[1759548039937,0.05377856,121930.0,121920.0,0.82112199]
[1759548040159,0.05696856,121930.0,121920.0,0.82112199]
[1759548040572,0.031215,121930.0,121920.0,0.82112199]
[1759548040783,0.00660468,121930.0,121920.0,3.53932418]
[1759548040995,0.00660468,121930.0,121920.0,3.94174666]
[1759548041643,0.00460468,121930.0,121920.0,3.94174666]
[1759548041855,0.00460468,121930.0,121920.0,4.15275509]
[1759548042488,0.00360468,121930.0,121920.0,4.15275509]
[1759548042905,0.00360468,121930.0,121920.0,4.15475509]
[1759548047469,0.00360468,121930.0,121920.0,4.08149784]
[1759548048288,0.00360468,121930.0,121920.0,3.72863509]
[1759548048490,0.00360468,121930.0,121920.0,4.15475509]
[1759548049336,0.00360468,121930.0,121920.0,4.06955509]
[1759548049544,0.00360468,121930.0,121920.0,4.15475509]
[1759548051773,0.00360468,121930.0,121920.0,3.49767509]
[1759548051990,0.00360468,121930.0,121920.0,4.15475509]
[1759548052195,0.00360468,121930.0,121920.0,3.72863509]
[1759548052400,0.00360468,121930.0,121920.0,3.65537784]
[1759548052607,0.00360468,121930.0,121920.0,4.08149784]
[1759548052787,0.00360468,121930.0,121920.0,3.65533784]
[1759548053008,0.00360468,121930.0,121920.0,4.08145784]
[1759548054077,0.00360468,121930.0,121920.0,3.42441784]
[1759548054291,0.00360468,121930.0,121920.0,4.08145784]
[1759548060080,0.00360468,121930.0,121920.0,3.42441784]
[1759548060264,0.00360468,121930.0,121920.0,4.08141784]
[1759548061441,0.00360468,121930.0,121920.0,3.42441784]
[1759548061650,0.00360468,121930.0,121920.0,4.08141784]
[1759548062236,0.00360468,121930.0,121920.0,4.45467509]
[1759548062487,0.00023805,121930.0,121920.0,4.45467509]
[1759548062698,0.00023805,121930.0,121920.0,4.38141784]
[1759548063242,0.00023805,121930.0,121920.0,3.72441784]
[1759548063823,0.00023805,121930.0,121920.0,4.72229784]
[1759548065048,0.00023805,121930.0,121920.0,4.72129784]
[1759548065375,0.00023805,121930.0,121920.0,3.72741784]
[1759548065590,0.00023805,121930.0,121920.0,4.72325784]
[1759548065951,0.00023805,121930.0,121920.0,4.30121784]
[1759548066158,0.00023805,121930.0,121920.0,4.72729784]
[1759548066369,0.00023805,121930.0,121920.0,4.83030297]
[1759548066570,0.00023805,121930.0,121920.0,5.13030297]
[1759548069894,0.00023805,121930.0,121920.0,4.13242297]
[1759548070064,0.00023805,121930.0,121920.0,5.13018297]
[1759548070468,0.00023805,121930.0,121920.0,4.13242297]
[1759548070715,0.00023805,121930.0,121920.0,5.13018297]
[1759548070909,0.00023805,121930.0,121920.0,4.13242297]
[1759548071100,0.00023805,121930.0,121920.0,5.13018297]
[1759548071385,0.00233805,121930.0,121920.0,4.13242297]
[1759548071596,0.00548805,121930.0,121920.0,5.02717784]
[1759548071816,0.00023805,121930.0,121920.0,5.02717784]
[1759548072596,1.333e-05,121930.0,121920.0,5.02717784]
[1759548073387,1.333e-05,121930.0,121920.0,5.13018297]
[1759548074216,1.333e-05,121930.0,121920.0,4.13242297]
[1759548074394,0.00211333,121930.0,121920.0,4.13242297]
[1759548074543,1.333e-05,121930.0,121920.0,4.1090491]
[1759548074751,1.333e-05,121930.0,121920.0,5.00380397]
[1759548075436,1.333e-05,121930.0,121920.0,4.91860397]
[1759548075707,1.333e-05,121930.0,121920.0,5.02717784]
[1759548082401,1.333e-05,121930.0,121920.0,5.13018297]
[1759548082608,0.0032,121940.0,121930.0,0.21755431]
[1759548082816,0.0036932,121940.0,121930.0,3.26421455]
[1759548083024,0.00444698,121940.0,121930.0,3.26421455]
[1759548083437,0.00444698,121940.0,121930.0,3.26790775]
[1759548084156,0.00444698,121940.0,121930.0,3.32800384]
[1759548084703,0.00444698,121940.0,121930.0,3.32900384]
[1759548085703,0.00969698,121940.0,121930.0,3.09816384]
[1759548085909,0.00969698,121940.0,121930.0,4.09588384]
[1759548086184,0.00444698,121940.0,121930.0,4.09588384]
[1759548088372,0.00944698,121940.0,121930.0,4.09588384]
[1759548088808,0.00647698,121940.0,121930.0,4.09588384]
[1759548089009,0.00444698,121940.0,121930.0,4.09588384]
[1759548089668,0.00444698,121940.0,121930.0,3.09816384]
[1759548089872,0.00444698,121940.0,121930.0,4.09588384]
[1759548090074,0.00953698,121940.0,121930.0,4.09588384]
[1759548090487,0.00444698,121940.0,121930.0,4.09588384]
[1759548091074,0.00444698,121940.0,121930.0,4.01064384]
[1759548091284,0.00444698,121940.0,121930.0,4.09584384]
[1759548096592,0.00660698,121940.0,121930.0,4.09584384]
[1759548096777,0.00444698,121940.0,121930.0,4.09584384]
[1759548123171,0.00444698,121940.0,121930.0,3.09816384]
[1759548123460,0.00444698,121940.0,121930.0,4.09580384]
[1759548125276,0.00444698,121940.0,121930.0,4.02249266]
[1759548126526,0.00024694,121940.0,121930.0,4.02249266]
[1759548129788,0.00024694,121940.0,121930.0,3.02485266]
[1759548129989,0.00024694,121940.0,121930.0,4.02249266]
[1759548130188,0.00024694,121940.0,121930.0,3.81755656]
[1759548130405,0.00024694,121940.0,121930.0,3.99144445]
[1759548130989,0.00044694,121950.0,121940.0,0.51387443]
[1759548131226,0.00049622,121950.0,121940.0,3.55845051]
[1759548131379,0.00070085,121950.0,121940.0,3.55845051]
[1759548132182,0.00270085,121950.0,121940.0,3.55845051]
[1759548132666,0.00570085,121950.0,121940.0,3.55845051]
[1759548139066,0.00786085,121950.0,121940.0,3.55845051]
[1759548139676,0.00570085,121950.0,121940.0,3.55845051]
[1759548140414,0.00570085,121950.0,121940.0,3.57312886]
[1759548143052,0.00570085,121950.0,121940.0,3.66986333]
[1759548147939,0.00570085,121950.0,121940.0,3.69446348]
[1759548150491,0.00570085,121950.0,121940.0,3.46370348]
[1759548150697,0.00570085,121950.0,121940.0,4.07728822]
[1759548152598,0.00031741,121950.0,121940.0,4.37728822]
[1759548152867,0.00031741,121950.0,121940.0,3.72048822]
[1759548153077,0.00031741,121950.0,121940.0,4.68797632]
[1759548153830,0.00031741,121950.0,121940.0,4.66549876]
[1759548154486,0.00246741,121950.0,121940.0,4.66549876]
[1759548154657,0.00564741,121950.0,121940.0,4.66549876]
[1759548154867,0.00031741,121950.0,121940.0,4.73878425]
[1759548156487,0.00031741,121950.0,121940.0,3.74114425]
[1759548156693,0.00564741,121950.0,121940.0,4.39794425]
[1759548157009,0.00031741,121950.0,121940.0,3.74114425]
[1759548157209,0.00031741,121950.0,121940.0,4.39794425]
[1759548159373,0.00246741,121950.0,121940.0,4.39794425]
[1759548159575,0.00031741,121950.0,121940.0,4.39794425]
[1759548167080,0.00031741,121950.0,121940.0,4.38181308]
[1759548170841,0.00031741,121950.0,121940.0,4.27604393]
[1759548173076,0.00031741,121950.0,121940.0,3.61924393]
[1759548173271,0.00031741,121950.0,121940.0,4.61680393]
[1759548173509,0.00031741,121950.0,121940.0,4.53160393]
[1759548173734,0.00031741,121950.0,121940.0,4.61680393]
[1759548176681,0.00031741,121950.0,121940.0,3.61924393]
[1759548176892,0.00246741,121950.0,121940.0,4.61676393]
[1759548177122,0.00246741,121950.0,121940.0,4.19076393]
[1759548177293,0.00246741,121950.0,121940.0,4.61676393]
[1759548177501,0.00246741,121950.0,121940.0,3.61924393]
[1759548177703,0.00246741,121950.0,121940.0,4.61676393]
[1759548178886,0.00031741,121950.0,121940.0,4.61676393]
[1759548179109,0.00031741,121950.0,121940.0,3.61924393]
[1759548179342,0.00559741,121950.0,121940.0,4.17922946]
[1759548179834,0.00559741,121950.0,121940.0,3.52250946]
[1759548180041,0.00559741,121950.0,121940.0,4.17922946]
[1759548180256,0.00559741,121950.0,121940.0,3.52250946]
[1759548180470,0.00559741,121950.0,121940.0,4.23793451]
[1759548180890,0.00559741,121950.0,121940.0,4.17922946]
[1759548181093,0.00559741,121950.0,121940.0,4.25251495]
[1759548181516,0.00559741,121950.0,121940.0,4.24557417]
[1759548181934,0.00559741,121950.0,121940.0,3.28885417]
[1759548182141,0.00559741,121950.0,121940.0,3.78916662]
[1759548182358,0.00559741,121950.0,121940.0,3.84788533]
[1759548182581,0.00559741,121950.0,121940.0,0.79376325]
[1759548182838,0.16959905,121950.0,121940.0,0.71543871]
[1759548183032,0.19420354,121950.0,121940.0,0.71543871]
[1759548183248,0.19420354,121950.0,121940.0,0.65672]
[1759548183698,0.19420354,121950.0,121940.0,0.70073175]
[1759548183911,0.19420354,121950.0,121940.0,0.04401175]
[1759548184132,0.19420354,121950.0,121940.0,0.47001175]
[1759548184359,0.19420354,121950.0,121940.0,0.73006159]
[1759548184887,0.19420354,121950.0,121940.0,0.07334159]
[1759548185113,0.19420354,121950.0,121940.0,0.84528984]
[1759548185287,0.19420354,121950.0,121940.0,3.00467684]
[1759548185501,0.19420354,121950.0,121940.0,0.34528984]
[1759548188389,0.16401508,121940.0,121930.0,0.07389068]
[1759548188609,0.00528,121940.0,121930.0,3.39007768]
[1759548188786,0.00528,121940.0,121930.0,3.55410622]
[1759548188996,0.0298863,121940.0,121930.0,3.55410622]
[1759548189681,0.00528,121940.0,121930.0,3.55710622]
[1759548189891,0.00528,121940.0,121930.0,3.52977638]
[1759548190720,0.00528,121940.0,121930.0,3.55438268]
[1759548191799,0.0032,121960.0,121950.0,0.16400164]
[1759548192012,0.00848,121960.0,121950.0,0.46795969]
[1759548192221,0.00523,121960.0,121950.0,0.4679575]
[1759548192434,0.00523,121960.0,121950.0,3.09808347]
[1759548192634,0.00848,121960.0,121950.0,3.12268501]
[1759548193057,0.00848,121960.0,121950.0,3.52455832]
[1759548193058,0.0072,121960.0,121950.0,3.52455832]
[1759548193278,0.0072,121960.0,121950.0,3.58327703]
[1759548193490,0.0102,121960.0,121950.0,3.58327703]
[1759548193950,0.0062,121960.0,121950.0,3.58327703]
[1759548194348,0.0042,121960.0,121950.0,3.58327703]
[1759548195872,0.0062,121960.0,121950.0,3.58327703]
[1759548197349,0.0064046,121960.0,121950.0,3.58327703]
[1759548202052,0.0064046,121960.0,121950.0,3.35247703]
[1759548202284,0.0064046,121960.0,121950.0,3.92431703]
[1759548202464,0.0064046,121960.0,121950.0,4.00951703]
[1759548202898,0.0064046,121960.0,121950.0,4.00947703]
[1759548203106,0.0084346,121960.0,121950.0,4.00947703]
[1759548204676,0.0064046,121960.0,121950.0,4.00947703]
[1759548204888,0.0064046,121960.0,121950.0,3.35247703]
[1759548205078,0.0064046,121960.0,121950.0,4.00947703]
[1759548205933,0.0064046,121960.0,121950.0,3.35247703]
[1759548206103,0.0116846,121960.0,121950.0,4.00947703]
[1759548207444,0.0116846,121960.0,121950.0,3.32983095]
[1759548207639,0.0116846,121960.0,121950.0,3.98683095]
[1759548208426,0.0116846,121960.0,121950.0,3.56079095]
[1759548208664,0.0116846,121960.0,121950.0,3.98683095]
[1759548210127,0.0116846,121960.0,121950.0,3.32983095]
[1759548210339,0.0116846,121960.0,121950.0,3.98683095]
[1759548211116,0.0116846,121960.0,121950.0,3.56075095]
[1759548211316,0.0116846,121960.0,121950.0,3.98679095]
[1759548211626,0.0064046,121960.0,121950.0,3.98679095]
[1759548213389,0.0064046,121960.0,121950.0,3.90155095]
[1759548213604,0.0064046,121960.0,121950.0,3.98675095]
[1759548213782,0.0116446,121960.0,121950.0,3.96214941]
[1759548214144,0.0116446,121960.0,121950.0,3.96864941]
[1759548214745,0.0116446,121960.0,121950.0,3.99252453]
[1759548216579,0.0064046,121960.0,121950.0,3.99252453]
[1759548219236,0.0064046,121960.0,121950.0,3.93380582]
[1759548220421,0.0064046,121960.0,121950.0,4.00709131]
[1759548232492,0.0085446,121960.0,121950.0,4.00709131]
[1759548233806,0.0116446,121960.0,121950.0,4.00709131]
[1759548234753,0.0116446,121960.0,121950.0,3.58105131]
[1759548234963,0.0116446,121960.0,121950.0,4.00705131]
[1759548235861,0.0116446,121960.0,121950.0,3.58105131]
[1759548236066,0.0116446,121960.0,121950.0,4.00705131]
[1759548236695,0.0116446,121960.0,121950.0,3.35017131]
[1759548236895,0.0116446,121960.0,121950.0,4.00705131]
[1759548244235,0.0116446,121960.0,121950.0,3.35017131]
[1759548244441,0.0116446,121960.0,121950.0,4.00701131]
[1759548244647,0.0116446,121960.0,121950.0,3.35017131]
[1759548244852,0.0116446,121960.0,121950.0,4.00701131]
[1759548246564,0.0116446,121960.0,121950.0,4.00051131]
[1759548247118,0.0116446,121960.0,121950.0,3.34367131]
[1759548247313,0.0116446,121960.0,121950.0,4.00051131]
[1759548247999,0.0116446,121960.0,121950.0,3.92722582]
[1759548248201,0.0116446,121960.0,121950.0,3.27038582]
[1759548248445,0.0116446,121960.0,121950.0,3.92722582]
[1759548252624,0.0116446,121960.0,121950.0,3.27038582]
[1759548252829,0.0116446,121960.0,121950.0,3.92718582]
[1759548261340,0.0116446,121960.0,121950.0,4.00047131]
[1759548265866,0.0064046,121960.0,121950.0,4.00047131]
[1759548267387,0.0085346,121960.0,121950.0,4.00047131]
[1759548267584,0.0116946,121960.0,121950.0,4.00047131]
[1759548267841,0.0085346,121960.0,121950.0,4.00047131]
[1759548268227,0.0117646,121960.0,121950.0,4.02507102]
[1759548269239,0.0064046,121960.0,121950.0,4.02507102]
[1759548269478,0.0084246,121960.0,121950.0,4.02507102]
[1759548269736,0.0116146,121960.0,121950.0,4.02507102]
[1759548276495,0.0064046,121960.0,121950.0,4.02507102]
[1759548276931,0.0084246,121960.0,121950.0,4.02507102]
[1759548279320,0.0064046,121960.0,121950.0,4.02507102]
[1759548280309,0.0054046,121960.0,121950.0,4.02507102]
[1759548280564,0.0034046,121960.0,121950.0,4.02507102]
[1759548281810,0.0054046,121960.0,121950.0,4.02507102]
[1759548284657,0.0054046,121960.0,121950.0,3.36827102]
[1759548284807,0.0054046,121960.0,121950.0,4.02503102]
[1759548291425,0.0054046,121960.0,121950.0,3.36827102]
[1759548291603,0.0054046,121960.0,121950.0,4.36583102]
[1759548292093,0.0054046,121960.0,121950.0,4.09919853]
[1759548292863,0.0054046,121960.0,121950.0,4.15785427]
[1759548293286,0.0054046,121960.0,121950.0,4.15579477]
[1759548299296,0.0054046,121960.0,121950.0,4.09713903]
[1759548299694,0.0054046,121960.0,121950.0,4.15579332]
[1759548300237,0.0054046,121960.0,121950.0,4.09713903]
[1759548301988,0.00025161,121960.0,121950.0,4.09713903]
[1759548302408,0.00025161,121960.0,121950.0,3.09957903]
[1759548302610,0.00025161,121960.0,121950.0,4.09713903]
[1759548309268,0.00025161,121960.0,121950.0,4.20014416]
[1759548312112,1.204e-05,121960.0,121950.0,4.20014416]
[1759548315785,0.00209204,121960.0,121950.0,4.20014416]
[1759548316214,1.204e-05,121960.0,121950.0,4.20014416]
[1759548322212,0.0034,121970.0,121960.0,0.62459778]
[1759548322415,0.00344927,121970.0,121960.0,3.47788085]
[1759548322852,0.00365384,121970.0,121960.0,3.47788085]
[1759548323029,0.00365384,121970.0,121960.0,3.48422085]
[1759548323416,0.00765384,121970.0,121960.0,3.48422085]
[1759548323624,0.01287384,121970.0,121960.0,3.50155739]
[1759548324023,0.00973384,121970.0,121960.0,3.50155739]
[1759548324240,0.00765384,121970.0,121960.0,3.50155739]
[1759548325990,0.01287384,121970.0,121960.0,3.50155739]
[1759548326565,0.01287384,121970.0,121960.0,3.27079739]
[1759548326777,0.00973384,121970.0,121960.0,3.27079739]
[1759548327013,0.00973384,121970.0,121960.0,3.92755739]
[1759548327233,0.00973384,121970.0,121960.0,3.84235739]
[1759548327447,0.00973384,121970.0,121960.0,3.92755739]
[1759548328330,0.01294384,121970.0,121960.0,3.92755739]
[1759548328536,0.00973384,121970.0,121960.0,3.92755739]
[1759548328771,0.00765384,121970.0,121960.0,3.92755739]
[1759548331203,0.01287384,121970.0,121960.0,3.92755739]
[1759548331763,0.00963384,121970.0,121960.0,3.92755739]
[1759548331906,0.00765384,121970.0,121960.0,3.92755739]
[1759548334650,0.00963384,121970.0,121960.0,3.92755739]
[1759548334856,0.01287384,121970.0,121960.0,3.92755739]
[1759548339254,0.00963384,121970.0,121960.0,3.92755739]
[1759548343864,0.01199684,122000.0,121960.0,3.97673739]
[1759548344092,0.0024,122010.0,122000.0,1.23082079]
[1759548344313,0.00248084,122010.0,122000.0,3.74669364]
[1759548344534,0.00248084,122010.0,122000.0,4.7617232]
[1759548344749,0.00248084,122010.0,122000.0,3.89916474]
[1759548344968,0.003,122020.0,122010.0,0.16392099]
[1759548345206,0.003,122020.0,122010.0,2.905349]
[1759548345424,0.003,122020.0,122010.0,3.00854194]
[1759548345653,0.003,122020.0,122010.0,3.02218194]
[1759548346180,0.00822,122020.0,122010.0,4.12655264]
[1759548346642,0.003,122020.0,122010.0,4.12655264]
[1759548347347,0.003,122020.0,122010.0,4.0555116]
[1759548348817,0.003,122020.0,122010.0,4.11558672]
[1759548349241,0.003,122020.0,122010.0,3.9391351]
[1759548349582,0.003,122020.0,122010.0,4.10305609]
[1759548349914,0.003,122020.0,122010.0,4.1143825]
[1759548350361,0.003,122020.0,122010.0,3.1159025]
[1759548350578,0.003,122020.0,122010.0,4.1143825]
[1759548351829,0.003,122020.0,122010.0,3.1159025]
[1759548352043,0.00822,122020.0,122010.0,2.8159025]
[1759548352263,0.00822,122020.0,122010.0,3.49016505]
[1759548352689,0.00822,122020.0,122010.0,2.83248505]
[1759548352900,0.17212755,122020.0,122010.0,2.95849289]
[1759548353117,0.17212755,122020.0,122010.0,0.6952483]
[1759548353329,0.00822,122020.0,122010.0,0.85916929]
[1759548354986,0.00924241,122020.0,122010.0,0.85916929]
[1759548356501,0.00924241,122020.0,122010.0,0.85912929]
[1759548359374,0.00924241,122020.0,122010.0,0.88825388]
[1759548360363,0.00924241,122020.0,122010.0,0.91535821]
[1759548361619,0.00924241,122020.0,122010.0,0.89350991]
[1759548364329,0.00924241,122020.0,122010.0,0.03569296]
[1759548364540,0.00924241,122020.0,122010.0,0.65512797]
[1759548364740,0.00924241,122020.0,122010.0,0.66332524]
[1759548365670,0.00924241,122020.0,122010.0,0.89508524]
[1759548367267,0.00924241,122020.0,122010.0,0.87321468]
[1759548369325,0.00924241,122020.0,122010.0,0.84862532]
[1759548370928,0.00924241,122020.0,122010.0,0.87321368]
[1759548371149,0.00924241,122020.0,122010.0,0.44729368]
[1759548371347,0.00924241,122020.0,122010.0,0.87313368]
[1759548371552,0.00924241,122020.0,122010.0,0.21561368]
[1759548371768,0.00924241,122020.0,122010.0,0.87313368]
[1759548372203,0.00924241,122020.0,122010.0,0.21561368]
[1759548372384,0.00924241,122020.0,122010.0,0.87313368]
[1759548372730,0.00924241,122020.0,122010.0,0.25930056]
[1759548372937,0.00924241,122020.0,122010.0,0.91682056]
[1759548375296,0.00924241,122020.0,122010.0,0.87313368]
[1759548377856,0.00924241,122020.0,122010.0,0.87309368]
[1759548379281,0.00924241,122020.0,122010.0,0.93137404]
[1759548380132,0.00924241,122020.0,122010.0,0.93133404]
[1759548385855,0.02959862,122020.0,122010.0,0.65510872]
[1759548386041,0.00924241,122020.0,122010.0,0.74026872]
[1759548386662,0.00924241,122020.0,122010.0,0.90418971]
[1759548386971,0.19350617,122020.0,122010.0,0.74022872]
[1759548387220,0.17314996,122020.0,122010.0,0.74022872]
[1759548387951,0.17314996,122020.0,122010.0,0.90414971]
[1759548388198,0.17314996,122020.0,122010.0,0.87956135]
[1759548388739,0.17314996,122020.0,122010.0,0.71564036]
[1759548388945,0.17314996,122020.0,122010.0,0.28980036]
[1759548389159,0.17314996,122020.0,122010.0,0.05828036]
[1759548389619,0.17314996,122020.0,122010.0,0.48412036]
[1759548389829,0.17314996,122020.0,122010.0,0.6574]
[1759548390470,0.17314996,122020.0,122010.0,0.70138991]
[1759548391361,0.17314996,122020.0,122010.0,0.04398991]
[1759548391567,0.17314996,122020.0,122010.0,0.36070991]
[1759548392397,0.17314996,122020.0,122010.0,0.31672]
[1759548393169,0.00402241,122020.0,122010.0,0.38781424]
[1759548393406,0.00901241,122020.0,122010.0,0.38781424]
[1759548393579,0.00901241,122020.0,122010.0,0.07109424]
[1759548393780,0.02936862,122020.0,122010.0,0.72857424]
[1759548404628,0.02632862,122020.0,122010.0,0.72857424]
[1759548404838,0.02936862,122020.0,122010.0,0.72857424]
[1759548409528,0.00901241,122020.0,122010.0,0.72857424]
[1759548409734,0.02936862,122020.0,122010.0,0.72857424]
[1759548412452,0.02936862,122020.0,122010.0,0.89249523]
[1759548412685,0.00402241,122020.0,122010.0,0.84850532]
[1759548412916,0.00402241,122020.0,122010.0,0.89249111]
[1759548413366,0.00901241,122020.0,122010.0,0.84850532]
[1759548415796,0.00901241,122020.0,122010.0,0.76314532]
[1759548416043,0.00901241,122020.0,122010.0,0.68438433]
[1759548416525,0.02936862,122020.0,122010.0,0.68438433]
[1759548417926,0.02936862,122020.0,122010.0,0.59922433]
[1759548418171,0.02936862,122020.0,122010.0,0.68438433]
[1759548420216,0.02936862,122020.0,122010.0,0.84830532]
[1759548421244,0.02936862,122020.0,122010.0,0.19102532]
[1759548421463,0.02936862,122020.0,122010.0,0.84826532]
[1759548421871,0.02936862,122020.0,122010.0,0.19102532]
[1759548422072,0.02936862,122020.0,122010.0,0.84818532]
[1759548422512,0.02936862,122020.0,122010.0,0.19102532]
[1759548422745,0.02936862,122020.0,122010.0,0.84818532]
[1759548425609,0.00901241,122020.0,122010.0,0.84818532]
[1759548426191,0.00597241,122020.0,122010.0,0.84818532]
[1759548426394,0.00921241,122020.0,122010.0,0.84818532]
[1759548427961,0.00402241,122020.0,122010.0,0.84818532]
[1759548428498,0.00602241,122020.0,122010.0,0.84818532]
[1759548428717,0.00926241,122020.0,122010.0,0.84818532]
[1759548429154,0.00602241,122020.0,122010.0,0.84818532]
[1759548429599,0.00926241,122020.0,122010.0,0.84818532]
[1759548430455,0.00602241,122020.0,122010.0,0.84818532]
[1759548430661,0.00926241,122020.0,122010.0,0.84818532]
[1759548431082,0.00402241,122020.0,122010.0,0.84818532]
[1759548431729,0.00602241,122020.0,122010.0,0.84818532]
[1759548431941,0.00926241,122020.0,122010.0,0.84818532]
[1759548432365,0.00602241,122020.0,122010.0,0.84818532]
[1759548432577,0.00926241,122020.0,122010.0,0.84818532]
[1759548432976,0.00402241,122020.0,122010.0,0.84818532]
[1759548433181,0.00602241,122020.0,122010.0,0.84818532]
[1759548433387,0.00926241,122020.0,122010.0,0.90646568]
[1759548433595,0.00926241,122020.0,122010.0,0.84818532]
[1759548434021,0.02961862,122020.0,122010.0,0.84818532]
[1759548434228,0.02961862,122020.0,122010.0,0.90646568]
[1759548434649,0.02637862,122020.0,122010.0,0.90646568]
[1759548434855,0.00602241,122020.0,122010.0,0.90646568]
[1759548435852,0.00926241,122020.0,122010.0,0.90646568]
[1759548437304,0.00602241,122020.0,122010.0,0.90646568]
[1759548437750,0.00926241,122020.0,122010.0,0.90646568]
[1759548439288,0.00602241,122020.0,122010.0,0.90646568]
[1759548439712,0.00402241,122020.0,122010.0,0.90646568]
[1759548440119,0.00602241,122020.0,122010.0,0.90646568]
[1759548440359,0.00926241,122020.0,122010.0,0.90646568]
[1759548442732,0.00402241,122020.0,122010.0,0.90646568]
[1759548445859,0.00602241,122020.0,122010.0,0.90646568]
[1759548446319,0.00926241,122020.0,122010.0,0.90646568]
[1759548447367,0.00602241,122020.0,122010.0,0.90646568]
[1759548447777,0.00926241,122020.0,122010.0,0.90646568]
[1759548455935,0.00926241,122020.0,122010.0,0.90626568]
[1759548456145,0.00926241,122020.0,122010.0,0.24930568]
[1759548456330,0.00926241,122020.0,122010.0,0.74234469]
[1759548456577,0.00926241,122020.0,122010.0,0.90626568]
[1759548459085,0.00926241,122020.0,122010.0,0.24930568]
[1759548459314,0.00926241,122020.0,122010.0,0.90622568]
[1759548462610,0.00926241,122020.0,122010.0,0.24930568]
[1759548462812,0.00926241,122020.0,122010.0,0.90622568]
[1759548463011,0.00926241,122020.0,122010.0,0.08538469]
[1759548463216,0.00926241,122020.0,122010.0,0.40162469]
[1759548465317,0.00926241,122020.0,122010.0,0.56554568]
[1759548472402,0.00602241,122020.0,122010.0,0.56554568]
[1759548472636,0.00919241,122020.0,122010.0,0.56554568]
[1759548485938,0.00919241,122020.0,122010.0,0.08538469]
[1759548486147,0.00919241,122020.0,122010.0,0.74214469]
[1759548488863,0.00919241,122020.0,122010.0,0.90606568]
[1759548489738,0.00919241,122020.0,122010.0,0.24930568]
[1759548489922,0.00919241,122020.0,122010.0,0.90606568]
[1759548490165,0.00919241,122020.0,122010.0,0.48022568]
[1759548490330,0.00919241,122020.0,122010.0,0.90606568]
[1759548492800,0.00402241,122020.0,122010.0,0.90606568]
[1759548493243,0.00402241,122020.0,122010.0,0.9306544]
[1759548496100,0.00402241,122020.0,122010.0,0.2738944]
[1759548496327,0.00402241,122020.0,122010.0,0.9307344]
[1759548500397,0.00402241,122020.0,122010.0,0.2738944]
[1759548500601,0.00402241,122020.0,122010.0,0.9307344]
[1759548501227,0.00402241,122020.0,122010.0,0.8455344]
[1759548501429,0.00402241,122020.0,122010.0,0.9306944]
[1759548502659,0.00402241,122020.0,122010.0,0.74212314]
[1759548503067,0.00402241,122020.0,122010.0,0.79866657]
[1759548503287,0.00402241,122020.0,122010.0,0.14186657]
[1759548503494,0.00402241,122020.0,122010.0,0.79866657]
[1759548504105,0.00917241,122020.0,122010.0,0.14186657]